Cogmind - Beta 14 @@@ ROGUE MODE // 2024.11.11 @ 10:11:47 Player: OG DANIEL Result: Self-destructed Performance ------------- Evolutions (1) 500 Regions Visited (2) 400 Robots Destroyed (26) 130 Value Destroyed (639) 639 Prototype IDs (0) 0 Alien Tech Used (0) 0 Bonus (0) 0 TOTAL SCORE: 1669 Bonus ------- None Cogmind --------- Core Integrity 99/400 Matter 287/300 Energy 100/100 System Corruption 0% Temperature Cool (16) Movement Core (350) Ox6 Location -9/Materials Parts ------- > --- POWER (1) -------- (None) > --- PROPULSION (4) --- Aluminum Leg > --- UTILITY (2) ------ Large Storage Unit Visual Processing Unit > --- WEAPON (2) ------- Light Assault Rifle > --- INVENTORY (15) --- Light Ion Engine Light Treads Aluminum Leg Compact Wheel Compact Wheel Beam Rifle Particle Gun Peak State ------------ > --- POWER ------------ Light Ion Engine > --- PROPULSION ------- Light Treads Light Treads Aluminum Leg Aluminum Leg > --- UTILITY ---------- Large Storage Unit Improved Terrain Scanner > --- WEAPON ----------- Particle Gun Light Assault Rifle > --- INVENTORY -------- Light Ion Engine Aluminum Leg Compact Wheel Compact Wheel Beam Cannon Light Assault Rifle [Rating: 12] Favorites ----------- Power Light Ion Engine Engine Light Ion Engine Propulsion Light Treads Treads Light Treads Leg Aluminum Leg Utility Improved Terrain Scanner Device Improved Terrain Scanner Storage Large Storage Unit Processor Visual Processing Unit Weapon Light Assault Rifle Energy Gun Particle Gun Energy Cannon Beam Cannon Ballistic Gun Light Assault Rifle Build | -11 -10 -9 ------- Run | Yrd Mat Mat Slots Evolved 2 | . . 2 Power . | . . . Propulsion 2 | . . 2 Utility . | . . . Weapon . | . . . Parts Attached 22 | 7 4 11 Power 4 | 1 2 1 Engine 4 | 1 2 1 Core . | . . . Reactor . | . . . Propulsion 7 | 2 . 5 Treads 5 | 2 . 3 Leg 2 | . . 2 Wheel . | . . . Hover . | . . . Flight . | . . . Utility 4 | 2 1 1 Device 1 | 1 . . Storage 2 | 1 1 . Processor 1 | . . 1 Hackware . | . . . Protection . | . . . Artifact . | . . . Weapon 7 | 2 1 4 Energy Gun 3 | 1 1 1 Energy Cannon 1 | . . 1 Ballistic Gun 3 | 1 . 2 Ballistic Cannon . | . . . Launcher . | . . . Special Weapon . | . . . Impact Weapon . | . . . Slashing Weapon . | . . . Piercing Weapon . | . . . Special Melee Weapon . | . . . Unidentified Prototypes . | . . . Parts Lost 8 | . . 8 Power 2 | . . 2 Propulsion 3 | . . 3 Utility 1 | . . 1 Weapon 2 | . . 2 Highest Loss Streak 6 | . . 6 To Critical Strikes . | . . . Average Slot Usage (%) 96 | . 100 92 Engine 12 | . 14 9 Treads 24 | . 28 20 Leg 8 | . . 21 Device 11 | . 14 6 Storage 12 | . 14 11 Energy Gun 12 | . 14 10 Ballistic Gun 12 | . 14 11 Peak Build Rating 12 | 9 10 12 Average Rating 9 | 5 9 10 On Entrance 6 | . 9 10 Naked Turns . | . . . Heaviest Build 28 | 13 28 28 Greatest Support 40 | 40 40 40 Greatest Overweight (x) 1 | . . 1 Average Overweight (x) . | . . . Largest Inventory Capacity 15 | 8 15 15 Average Capacity 12 | 6 12 15 Most Carried 8 | 6 8 8 Average Carried 6 | 4 6 7 Final Capacity 15 | 8 15 15 Final Carried 8 | 6 8 7 Class Distribution -------------------- 69% | Mutant 30% | Scavenger-Mutant Dominant Class ---------------- Mutant | -10/Materials Scavenger-Mutant | -9/Materials Resources | -11 -10 -9 ----------- Run | Yrd Mat Mat Matter Collected 461 | 261 75 125 Remotely . | . . . Salvage Created 812 | 26 266 520 Parts 55 | 3 18 34 Haulers Intercepted . | . . . Recyclers Shooed 2 | . . 2 Parts Field Recycled . | . . . Retrieved Matter . | . . . Parts Self-Destructed . | . . . Prevented . | . . . Kills | -11 -10 -9 ------- Run | Yrd Mat Mat Combat Hostiles Destroyed 20 | . 8 12 Guns 20 | . 8 12 Classes Destroyed 7 | 1 3 3 Worker 3 | . 1 2 Tunneler 2 | 1 . 1 Watcher 1 | . . 1 Swarmer 7 | . 3 4 Grunt 10 | . 5 5 Duelist 1 | . . 1 Sentry 2 | . . 2 Best Kill Streak 5 | 1 3 5 Combat Bots Only 4 | . 3 4 Max Kills in Single Turn 1 | 1 1 1 Gunslinging . | . . . Exploded . | . . . Melee . | . . . Uniques/NPCs Destroyed . | . . . Combat | -11 -10 -9 -------- Run | Yrd Mat Mat Hostile Shots Fired 136 | . 33 103 Missed 40 | . 14 26 Damage Taken 1459 | . 222 1237 Core 307 | . 6 301 Absorbed by Shields . | . . . Core Remaining (%) 98 | 100 97 . Volleys Fired 93 | 1 25 67 Largest 2 | 2 2 2 Hottest 85 | 60 85 85 Shots Fired 178 | 2 50 126 Gun 171 | 2 50 119 Cannon 7 | . . 7 Launcher . | . . . Special . | . . . Kinetic 91 | 1 25 65 Thermal 87 | 1 25 61 Explosive . | . . . Electromagnetic . | . . . Robot Hit Streak 14 | 1 14 12 Robot Miss Streak 6 | . 6 4 Penetration Max . | . . . Secondary Targets 1 | . 1 . Max Gunslinging Chain 1 | . 1 . Shots Hit Robots 103 | 1 30 72 Core Hits 43 | 1 14 28 Critical Kills . | . . . Critical Parts Destroyed . | . . . Critical Strikes 3 | . 1 2 Burn 3 | . 1 2 Melee Attacks . | . . . Impact . | . . . Slashing . | . . . Piercing . | . . . Sneak Attacks . | . . . Combat Hostiles . | . . . Follow-up Attacks . | . . . Damage Inflicted 1287 | 11 378 898 Guns 1217 | 11 378 828 Cannons 70 | . . 70 Explosions . | . . . Melee . | . . . Ramming . | . . . Kinetic 419 | . 110 309 Thermal 868 | 11 268 589 Explosive . | . . . Electromagnetic . | . . . Impact . | . . . Slashing . | . . . Piercing . | . . . Highest Corruption . | . . . Average Corruption . | . . . Corruption Purged . | . . . Corruption Blocked . | . . . Overload Shots . | . . . Overflow Damage . | . . . Projectiles . | . . . Explosions . | . . . Melee . | . . . Knockbacks . | . . . Impact . | . . . Kinetic . | . . . Secondary . | . . . Self-Inflicted Damage . | . . . Shots . | . . . Rammed . | . . . Targets Rammed . | . . . Kicked . | . . . Crushed . | . . . Highest Temperature 252 | 20 252 183 Average Temperature 62 | 15 81 53 Received Heat Transfer 483 | . 84 399 Siege Activations . | . . . Robots Corrupted . | . . . Combat Hostiles . | . . . Parts Fried . | . . . Impact Corruptions . | . . . Robots Melted . | . . . Combat Hostiles . | . . . Parts Melted 5 | . 2 3 Heat Transferred 2271 | 25 692 1554 Parts Sabotaged . | . . . Parts Stolen . | . . . Parts Stripped . | . . . Power Chain Reactions . | . . . Alert | -11 -10 -9 ------- Run | Yrd Mat Mat Peak Influence 394 | 5 240 394 Initial 44 | . 3 44 Average 125 | . 84 217 Maximum Alert Level 1 | . 1 1 Low Security (%) 77 | 100 92 48 Level 1 22 | . 7 51 Level 2 . | . . . Level 3 . | . . . Level 4 . | . . . Level 5 . | . . . High Security . | . . . Max Security . | . . . Squads Dispatched 3 | . 2 1 Investigation 2 | . 1 1 Extermination . | . . . Reinforcement 1 | . 1 . Assault . | . . . Garrison . | . . . Intercept . | . . . Searches Triggered . | . . . Construction Impeded . | . . . Haulers Reinforced . | . . . Active Scanning Responses . | . . . Cargo Convoy Interrupts . | . . . Stealth | -11 -10 -9 --------- Run | Yrd Mat Mat Distress Signals 4 | . 2 2 Communications Jammed . | . . . Distress Signals . | . . . Times Spotted 37 | . 13 24 Peak Tracking Total 6 | . 5 6 Tactical Retreats 3 | . 1 2 Traps | -11 -10 -9 ------- Run | Yrd Mat Mat Traps Triggered . | . . . Indirectly . | . . . Trap Hack Attempts . | . . . Triggered . | . . . Disarmed . | . . . Reprogrammed . | . . . Reused . | . . . Traps Extracted . | . . . Installed . | . . . Triggered . | . . . Machines | -11 -10 -9 ---------- Run | Yrd Mat Mat Machines Disabled 2 | . 1 1 Max in Single Turn 1 | . 1 1 Machines Repaired . | . . . Machines Dismantled . | . . . Machines Sabotaged . | . . . Overloaded Fab Kills . | . . . Hacking | -11 -10 -9 --------- Run | Yrd Mat Mat Machines Accessed 5 | . 3 2 Terminals 5 | . 3 2 Fabricators . | . . . Repair Stations . | . . . Recycling Units . | . . . Scanalyzers . | . . . Garrison Access . | . . . Total Hacks 15 | . 8 7 Successful 9 | . 6 3 Failed 6 | . 2 4 Catastrophic 1 | . . 1 Database Lockouts . | . . . Manual 6 | . 3 3 Terminals 15 | . 8 7 Fabricators . | . . . Repair Stations . | . . . Recycling Units . | . . . Scanalyzers . | . . . Garrison Access . | . . . Terminal Hacks 7 | . 4 3 Record 4 | . 4 . Level Access Points 1 | . . 1 Terminal Index 1 | . . 1 Dispatch Records 1 | . . 1 Fabricator Hacks . | . . . Repair Station Hacks . | . . . Recycling Unit Hacks . | . . . Scanalyzer . | . . . Garrison Access Hacks . | . . . Unauthorized Hacks 2 | . 2 . Terminals 2 | . 2 . Botnet 2 | . 2 . Fabricators . | . . . Repair Stations . | . . . Recycling Units . | . . . Scanalyzers . | . . . Garrison Access . | . . . Data Cores Recovered . | . . . Used . | . . . Hacking Detections 5 | . 3 2 Full Trace Events 3 | . 2 1 Feedback Events . | . . . Feedback Blocked . | . . . Robot Schematics Acquired . | . . . Robots Built . | . . . Authchips . | . . . Time . | . . . Total Robot Build Rating . | . . . Part Schematics Acquired . | . . . Parts Built . | . . . Authchips . | . . . Time . | . . . Total Part Build Rating . | . . . Parts Repaired . | . . . Time . | . . . Parts Recycled . | . . . Recycled Matter . | . . . Retrieved Matter . | . . . Retrieved Components . | . . . Parts Scanalyzed . | . . . Part Schematics Acquired . | . . . Parts Damaged . | . . . Bothacking | -11 -10 -9 ------------ Run | Yrd Mat Mat Used RIF Installer . | . . . Robots Hacked . | . . . Non-combat . | . . . Combat . | . . . Robot Hacks Applied . | . . . Relay Couplers Released . | . . . Fabnet Peak Effective % . | . . . Robots Rewired . | . . . Allies Hacked . | . . . Hacks Repelled . | . . . Allies | -11 -10 -9 -------- Run | Yrd Mat Mat Total Allies . | . . . Largest Group . | . . . Highest-Rated Group . | . . . Highest-Rated Ally . | . . . Total Orders . | . . . Ally Attacks . | . . . Total Damage . | . . . Kills . | . . . Allies Corrupted . | . . . Allies Melted . | . . . Intel | -11 -10 -9 ------- Run | Yrd Mat Mat Robot Analysis Total . | . . . Derelict Logs Recovered . | . . . Drone Launches . | . . . Drone Recoveries . | . . . Exploration | -11 -10 -9 ------------- Run | Yrd Mat Mat Turns Passed 1279 | 124 684 471 Spaces Moved 599 | 67 370 162 Core 1 | 1 . . Treads 597 | 66 370 161 Legs 1 | . . 1 Wheels . | . . . Hover . | . . . Flight . | . . . Fastest Speed 50 | 50 160 160 Average Speed 159 | 158 160 160 Slowest Speed 190 | 160 160 190 Overloaded Moves . | . . . Propulsion Burnouts . | . . . Robots Hopped . | . . . Cave-ins Triggered . | . . . Exploration Rate (%) 28 | 5 64 17 Regions Visited 2 Branch Regions . Pre-discovered Areas . | . . . Known Exits Taken . | . . . Unknown Exits Taken 2 | 1 1 . Scrap Searched . | . . . Spaces Dug . | . . . Terrain Destroyed . | . . . Melee . | . . . Projectile . | . . . AOE . | . . . Terrain Rammed . | . . . Walls Destroyed . | . . . Machines Disabled . | . . . Actions | -11 -10 -9 --------- Run | Yrd Mat Mat Total 757 | 80 418 259 Wait 24 | . 10 14 Move 597 | 66 369 162 Hop . | . . . Pick Up 11 | 6 4 1 Fast Attach 11 | 7 1 3 Attach 4 | . . 4 Detach 3 | . 1 2 Swap 7 | . 3 4 Drop 7 | . 5 2 Fire 93 | 1 25 67 Melee . | . . . Ram . | . . . Kick . | . . . Crush . | . . . Escape Stasis . | . . . Rewire . | . . . Trap . | . . . Miscellaneous . | . . . Route ------- -11/Scrapyard -10/Materials (discovered 3 exits: *Mat x2 / [*Min]) -9/Materials (discovered 3 exits: Mat x3) History --------- Turn | Location | Event 19 | -11/Scrapyard | Discovered new exit (range 15) 125 | -11/Scrapyard | Entered Materials 302 | -10/Materials | Build established: Mutant 382 | -10/Materials | Discovered new exit (range 11) 493 | -10/Materials | Discovered new exit (range 3) 741 | -10/Materials | Discovered new exit (range 16) 809 | -10/Materials | Entered another Materials area 809 | -9/Materials | Evolved 2 slots: Propulsion x2 1156 | -9/Materials | Build established: Scavenger-Mutant 1202 | -9/Materials | Identified exit to Materials 1272 | -9/Materials | Core integrity fell below 50% 1280 | -9/Materials | Self-destructed Last Messages --------------- 6x Transport >>Access(Main) Found 3 level access points to Materials: (20,90) (53,93) (82,88) Map updated. 01202_ ALERT: Suspicious activity at Terminal M010. Dispatching Investigation squad. 01216_ Acquired Visual Processing Unit. 01253_ Lgt. Treads destroyed. 01254_ Electrolysis Chamber disabled. 01254_ Lgt. Treads destroyed. 01256_ Aluminum Leg destroyed. 01256_ Lgt. Ion Engine destroyed. 01263_ Lgt. Assault Rifle destroyed. 01270_ Destroyed Imp. Ion Engine. 01271_ Beam Cannon destroyed. 01274_ Critical hit (Burn: +37). 01275_ L-31 Rogue destroyed. Map ----- +----------------------------------------------------+ | ?????????????????????????????????????????????????? | | ??????????????????????????????????#?????????#????? | | ?????????????????????????????#???????????????????? | | ????????????????????????????????????????#####?#### | | ????????????????????????????????????????# #? | | ???????????????????????????????#?#??????# # """ | | ?????????????????????????????????????#??# # """ | | ????????????????????????????????????????# + """ | | ????????????????????????????????????#???# # | | ??????????????????????????#??##??#??#???# # | | ???????????????????????????????????????## ###### | | ???????????????????????????????????????# #?#?? | | ?????????????????????????????#???#?????# ##### | | ???????????????????????????????????????#! T | | ???????????????????????????????????????# | | ?????????????????????##########?????#### | | ?????????????????????# ####### ### | | ??????????##?????????# """ # # | | ??????????# ## ### """ # !!! # | | ??????????# # """ # !!! / | | ??????????# + # !!! # | | ??????????# # """ # """ # ###### | | ??????????# ###??# "" # R" # #????# | | ??????????##?????????# Y""Y # """ # #????# | | ?????????????????????# =%! # # #???#? | | ?????????????????????####@#########+##### # ???? | | ??????????????????????###g###????##[##### #??? ? | | ????????????# ##### m #????#[%% % # | | ????????????# ###### = + | | ????????? T % # #?? | | ????????? #######+###### ##????? | | ?????????? ##### #??# % ## #???#?? | | ?????????? / ?????###+###??# """ ## #??#??? | | ??????????? ????????????????# """ ## ######? | | ????????????? ?????????????????# """ + #? | | ???????????????????????????????# #######%## | | ???????????????????????????????# """ ##???## #? | | ???????????????????????????????# """ #?#???# ## | | ???????????????????????????????# """ #?#???# # | | ???????????????????????????????# #??##?# # | | ???????????????????????????????##########???### # | | ???????????????????????????????????????#??????# #[ | | ??????????????????????????????????????#?#?????# /% | | ???????????????????????????????????#??????????# #* | | ?????????????????????????????????????? ???????#[## | | ??????????????????????????????????????????#?#?# #? | | ????????????????????????????????#?????????????# #? | | ??????????????????????????????????##? ???#????# ## | | ???????????????????????????????????#???????##?# #? | | ??????????????????????????????????#??????#???## #? | +----------------------------------------------------+ Best States ------------- Heat Dissipation 28 Energy Generation 10 Energy Capacity 250 Matter Stores 300 Matter Capacity 300 Sight Range 18 Terrain Scan Range 16 Terrain Scan Density 10 Evasion (%) 40 Recoil Reduction 2 Item Schematics ----------------- None Robot Schematics ------------------ None Fabricated ------------ Nothing Alien Tech Used ----------------- None Achievements -------------- None Challenges ------------ None Game ------ Seed RiotSegregatorCompactor Manual? 0 Play Time 00:12:27 Cumulative 25.8 hours Start 2024.11.11 @ 10:03:06 End 2024.11.11 @ 10:11:47 Sessions 1 Manual Loads 0 Difficulty Rogue Special Mode None Game No. 69 Rogue 69 Adventurer 0 Explorer 0 Win Type - Total 0 Types 0/0/0/0/0/0/0/0/0 Lore% 8 Gallery% 22 Achievement% 20 Wizard Run 0 Options --------- Layout 1 ASCII 0 Keyboard 0 Movement Numpad Keybinds 0 Fullscreen 0 Font 20/SmallcapsGlow Map View 50x35 Zoom Use 0% Tactical HUD 1 Map Filters NONE Filters NONE Steam 1 RUN: 9967ae7d-b2b2-40f4-a6b6-e6c8c9ece7bd